[Event "RUS-ch Youth U21 Girls 2017"]
[Site "Loo"]
[Date "2017.04.22"]
[Round "3"]
[White "Dimitrova, Aleksandra"]
[Black "Khokhlova, Daria"]
[Result "0-1"]
[ECO "B27"]
[WhiteElo "2246"]
[BlackElo "2175"]
[Annotator "NA"]
[PlyCount "64"]
[EventDate "2017.??.??"]
[EventType "tourn"]
[EventCountry "RUS"]
[SourceTitle "playchess.com"]
[Source "ChessBase"]
[SourceQuality "1"]
[TimeControl "40/5400+30:1800+30"]

1. e4 {[%emt 0:00:00]} c5 {[%emt 0:00:02]} 2. Nf3 {[%emt 0:00:00]} g6 {[%emt 0:00:03]} 3. d4 {[%emt 0:00:00]} cxd4 {[%emt 0:00:03]} 4. Qxd4 {[%emt 0:00:00]} Nf6 {[%emt 0:00:03]} 5. Nc3 {[%emt 0:00:00]} Nc6 {[%emt 0:00:15]} 6. Qa4 {[%emt 0:00:00]} d6 {[%emt 0:12:51]} 7. e5 {[%emt 0:00:04]} Ng4 {[%emt 0:06:49] B27: Sicilian: 2 Nf3, unusual Black 2nd moves} (7... dxe5 8. Nxe5 Bd7 9. Nxd7 Qxd7 10. Be3 Bg7 11. Rd1 Qg4 12. Rd4 Qf5 13. Bd3 Qe5 14. Rb4 Qc7 15. Bb5 O-O 16. Rc4 {0-1 (36) Wei,Y (2706)-Bu,X (2681) China 2015}) 8. Bb5 {[%emt 0:19:50]} Bg7 {[%emt 0:09:38]} 9. exd6 {[%emt 0:05:22] LiveBook: 9 Games} Qxd6 {[%emt 0:03:08]} 10. Ne4 {[%emt 0:02:41]} Qc7 {[%emt 0:03:05]} 11. Bf4 $146 {[%emt 0:10:49]} (11. h3 Nf6 12. Nxf6+ Bxf6 13. Bf4 Qb6 14. Be3 Qc7 15. Bxc6+ bxc6 {½-½ (27) Kadric,D (2532)-Canty,J (2337) Las Vegas 2015}) 11... e5 {[%emt 0:03:34]} (11... Qxf4 $17 12. Bxc6+ Kf8) 12. Bd2 {[%emt 0:01:15]} O-O {[%emt 0:06:56]} 13. h3 {[%emt 0:08:15]} Nf6 {[%emt 0:02:38]} 14. Nxf6+ {[%emt 0:00:17]} Bxf6 {[%emt 0:00:02]} 15. O-O {[%emt 0:07:36]} Bf5 {[%emt 0:04:04]} 16. Bc3 {[%emt 0:02:20]} Bg7 {[%emt 0:04:15]} 17. Rfe1 {[%emt 0:00:55]} f6 {[%emt 0:02:44]} 18. Bc4+ {[%emt 0:07:13]} Kh8 {[%emt 0:00:12]} 19. Qb3 {[%emt 0:00:40]} Rfd8 {[%emt 0:03:52]} 20. Be6 {[%emt 0:04:00]} Bxe6 {[%emt 0:01:18]} 21. Qxe6 {[%emt 0:00:02]} Qd7 {[%emt 0:02:55]} 22. Qc4 {[%emt 0:05:39]} Rac8 {[%emt 0:01:18]} 23. Qe2 {[%emt 0:00:41]} Ne7 {[%emt 0:04:37]} 24. Red1 {[%emt 0:01:27] [#]} (24. Rac1 $11) 24... Nd5 $1 {[%emt 0:03:18]} 25. Ba5 {[%emt 0:08:05]} b6 {[%emt 0:00:21]} 26. c4 {[%emt 0:01:04]} Nf4 {[%emt 0:01:07]} 27. Qe4 {[%emt 0:00:05]} Qc7 {[%emt 0:03:21]} 28. Bc3 {[%emt 0:00:53]} Kg8 {[%emt 0:03:18]} 29. b3 $15 {[%emt 0:05:22]} b5 {[%emt 0:02:24]} 30. Nd2 {[%emt 0:02:39]} f5 {[%emt 0:01:03]} 31. Qe1 {[%emt 0:01:48]} b4 {[%emt 0:00:52]} 32. Bxb4 {[%emt 0:02:04]} Nd3 {[%emt 0:00:20]} 0-1

[Event "RUS-ch Youth U21 Girls 2017"]
[Site "Loo"]
[Date "2017.04.22"]
[Round "3"]
[White "Bykova, Anastasia"]
[Black "Maltsevskaya, Aleksandra"]
[Result "0-1"]
[ECO "E68"]
[WhiteElo "2241"]
[BlackElo "2238"]
[Annotator "NA"]
[PlyCount "80"]
[EventDate "2017.??.??"]
[EventType "tourn"]
[EventCountry "RUS"]
[SourceTitle "playchess.com"]
[Source "ChessBase"]
[SourceQuality "1"]
[TimeControl "40/5400+30:1800+30"]

{[%evp 10,75,40,29,32767,32767,32767,32767,32767,32767,32767,32767,32767,32767,17,32767,32767,32767,32767,32767,32767,0,7,32767,32767,32767,32767,60,32767,-8,0,-4,32767,32767,-30,-20,-41,-95,-85,-71,-73,32767,-116,32767,32767,-129,-124,-390,-384,-385,-402,-387,32767,-410,-417,32767,-596,32767,32767,32767,32767,32767,-777,-2013,-1524,-2009,-1180,-1137]} 1. d4 {[%emt 0:00:00]} Nf6 {[%emt 0:00:07]} 2. Nf3 {[%emt 0:00:00]} g6 {[%emt 0:00:07]} 3. g3 {[%emt 0:00:00]} Bg7 {[%emt 0:00:05]} 4. Bg2 {[%emt 0:00:00]} O-O {[%emt 0:00:07]} 5. O-O {[%emt 0:00:00]} d6 {[%emt 0:00:06]} 6. c4 {[%emt 0:00:00]} Nbd7 {[%emt 0:00:06]} 7. Nc3 {[%emt 0:00:06]} e5 {[%emt 0:00:09]} 8. e4 {[%emt 0:00:06]} exd4 {[%emt 0:00:08]} 9. Nxd4 {[%emt 0:00:04]} Re8 {[%emt 0:00:11]} 10. b3 {[%emt 0:03:35]} Nc5 {[%emt 0:14:17]} 11. Re1 {[%emt 0:00:19] E68: King's Indian: Fianchetto: 6...Nbd7 7 0-0 e5 8 e4} (11. f3 c6 12. Be3 a6 13. Qd2 Nfd7 14. b4 Ne5 15. Qe2 Ne6 16. Rad1 Qc7 17. Rfe1 Rb8 18. h3 b5 19. cxb5 axb5 20. Nxe6 Bxe6 {0-1 (34) Jakovenko,D (2704)-Grischuk,A (2737) Doha 2016}) 11... Ng4 {[%emt 0:00:12] LiveBook: 5 Games} 12. f3 {[%emt 0:09:06]} Ne5 {[%emt 0:01:00]} 13. Be3 {[%emt 0:01:09]} a5 {[%emt 0:03:54]} 14. Qc2 {[%emt 0:07:07]} a4 {[%emt 0:08:08]} 15. Rad1 {[%emt 0:01:37]} Bd7 {[%emt 0:02:17]} 16. h3 $146 {[%emt 0:08:56]} (16. Ndb5 axb3 17. axb3 Na6 18. Na2 f5 19. f4 Nc6 {½-½ (43) Drabek,M (2071)-Jonas,V (1989) Czechia 2009}) 16... Qc8 {[%emt 0:04:54]} 17. f4 {[%emt 0:02:57]} Nc6 {[%emt 0:01:07]} 18. Nxc6 {[%emt 0:00:18]} ({Weaker is} 18. Nxa4 Nb4 19. Qb1 (19. Qd2 Bxa4 20. Qxb4 Bd7 $17) 19... Bxh3 $17) 18... Bxc6 {[%emt 0:05:08]} 19. e5 {[%emt 0:04:56]} (19. Nd5 $14) 19... axb3 {[%emt 0:03:22]} 20. axb3 {[%emt 0:02:10]} Na6 {[%emt 0:07:33]} 21. Bd4 {[%emt 0:21:27]} Nb4 {[%emt 0:04:07]} 22. Qf2 {[%emt 0:00:53]} Bxg2 {[%emt 0:01:12]} 23. Qxg2 {[%emt 0:00:19]} (23. Kxg2 $11 {keeps the balance.} c5 24. Be3) 23... c5 {[%emt 0:00:23]} 24. Bf2 {[%emt 0:00:40]} dxe5 {[%emt 0:00:15]} 25. Nb5 {[%emt 0:01:59]} exf4 {[%emt 0:03:24]} 26. Rxe8+ {[%emt 0:01:49]} Qxe8 {[%emt 0:00:05]} 27. Qxb7 {[%emt 0:10:03]} fxg3 {[%emt 0:09:00]} 28. Bxc5 $2 {[%emt 0:00:13]} (28. Bxg3 $17 Bf8 29. Re1) 28... Bf8 {[%emt 0:10:11]} 29. Nd6 {[%emt 0:04:03] [#]} Bxd6 $1 {[%emt 0:00:18]} 30. Bxd6 {[%emt 0:00:21]} Qe3+ {[%emt 0:01:14]} 31. Kh1 {[%emt 0:00:12]} Rd8 {[%emt 0:00:10]} ({Weaker is} 31... g2+ 32. Kh2 g1=Q+ 33. Rxg1 Ra2+ 34. Rg2 Rxg2+ 35. Qxg2 $11) 32. Rf1 {[%emt 0:02:04]} Qe6 {[%emt 0:00:25]} 33. Bxg3 {[%emt 0:06:02]} Qxh3+ {[%emt 0:00:08]} 34. Kg1 {[%emt 0:00:02]} Qxg3+ {[%emt 0:00:09]} 35. Kh1 {[%emt 0:00:03]} Qh4+ {[%emt 0:00:44]} 36. Kg1 {[%emt 0:00:12]} Qg4+ {[%emt 0:00:06]} 37. Kh1 {[%emt 0:00:06]} Qh5+ $19 {[%emt 0:00:06]} 38. Kg1 {[%emt 0:00:19]} Qc5+ {[%emt 0:00:05]} 39. Kh1 {[%emt 0:00:35]} Qc6+ {[%emt 0:00:06]} 40. Qxc6 {[%emt 0:00:00]} Nxc6 {[%emt 0:00:05]} 0-1

[Event "RUS-ch Youth U21 Girls 2017"]
[Site "Loo"]
[Date "2017.04.23"]
[Round "4"]
[White "Chernyak, Viktoria"]
[Black "Rodionova, Daria"]
[Result "1-0"]
[ECO "B20"]
[WhiteElo "2241"]
[BlackElo "2164"]
[Annotator "NA"]
[PlyCount "57"]
[EventDate "2017.??.??"]
[EventType "tourn"]
[EventCountry "RUS"]
[SourceTitle "playchess.com"]
[Source "ChessBase"]
[SourceQuality "1"]
[TimeControl "40/5400+30:1800+30"]

{[%evp 10,50,43,32767,44,36,32767,60,32767,32767,32767,32767,36,41,32767,36,221,32767,410,32767,514,32767,456,521,480,32767,32767,134,135,157,149,123,252,137,146,103,380,32767,33,44,117,131,203]} 1. e4 {[%emt 0:00:00]} c5 {[%emt 0:00:07]} 2. Ne2 {[%emt 0:00:00]} d6 {[%emt 0:00:58]} 3. g3 {[%emt 0:00:37]} Nc6 {[%emt 0:01:29]} 4. Bg2 {[%emt 0:00:06]} g6 {[%emt 0:00:49]} 5. c3 {[%emt 0:01:50]} Bg7 {[%emt 0:04:26] LiveBook: 143 Games} 6. d4 {[%emt 0:01:36]} cxd4 {[%emt 0:09:42]} 7. cxd4 {[%emt 0:00:59]} Qb6 {[%emt 0:03:12] B20: Sicilian: Unusual White 2nd moves} (7... Nf6 8. Nbc3 O-O 9. O-O Bd7 10. h3 Rc8 11. Be3 Qa5 12. Qd2 e5 13. d5 Ne7 14. b4 Qc7 15. a4 Qb8 16. Qd3 Nh5 17. Nb5 {1-0 (60) Salgado Lopez,I (2641)-Siva,M (2363) Dubai 2017}) 8. Nbc3 {[%emt 0:04:42]} Nxd4 {[%emt 0:10:07]} 9. Nd5 {[%emt 0:02:34]} Qc5 {[%emt 0:05:34]} 10. Nxd4 {[%emt 0:04:34]} Bxd4 {[%emt 0:02:10]} 11. Be3 {[%emt 0:04:20]} Bxe3 {[%emt 0:04:41]} 12. fxe3 {[%emt 0:00:15]} Kf8 $2 {[%emt 0:23:53]} (12... Qa5+ $1 $11 {and Black has nothing to worry.} 13. b4 Qd8) 13. O-O $146 {[%emt 0:04:08]} (13. Rc1 Qa5+ 14. b4 Qd8 15. Nc7 {½-½ (53) De Asis Dirceu,V (2273)-Coelho,L (2352) Rio de Janeiro 2002}) 13... Rb8 $2 {[%emt 0:16:37]} (13... Bd7 $16) 14. b4 {[%emt 0:07:25]} Qc4 {[%emt 0:01:11]} 15. Rc1 {[%emt 0:02:35]} Qa6 {[%emt 0:04:49]} 16. Qd4 {[%emt 0:04:34]} e5 {[%emt 0:03:58]} 17. Qc3 {[%emt 0:08:29]} Qc6 {[%emt 0:00:21]} 18. Qb3 {[%emt 0:11:12]} ({Weaker is} 18. Qxc6 bxc6 19. Rxc6 Kg7 $16) (18. Qd3 $18 {is more deadly.} Qe8 19. Nb6) 18... Qe8 {[%emt 0:00:45]} 19. Qa3 {[%emt 0:01:02]} a6 {[%emt 0:00:28]} 20. Qa5 {[%emt 0:03:19]} Bd7 {[%emt 0:03:49]} (20... b6 $16 {was called for.} 21. Nxb6 Be6) 21. Qc7 {[%emt 0:01:26]} (21. Rc7 $18) 21... Kg7 {[%emt 0:00:29]} 22. Qxd6 {[%emt 0:00:26]} Bc6 $2 {[%emt 0:00:17]} (22... Rc8 $16) 23. Rc2 {[%emt 0:13:19]} Rd8 $1 {[%emt 0:00:32]} 24. Qc5 {[%emt 0:00:55]} Rd7 {[%emt 0:01:22]} (24... Qd7 $14) 25. Bh3 {[%emt 0:02:23]} Rd8 $18 {[%emt 0:00:13]} (25... f5 $16) 26. Rcf2 {[%emt 0:00:36]} h5 {[%emt 0:00:37]} 27. Nc7 {[%emt 0:00:33]} Qe7 {[%emt 0:00:50]} 28. Qxe7 {[%emt 0:00:12]} Nxe7 {[%emt 0:00:04]} 29. Rxf7+ {[%emt 0:00:02]} 1-0

[Event "RUS-ch Youth U21 Girls 2017"]
[Site "Loo"]
[Date "2017.04.23"]
[Round "4"]
[White "Maltsevskaya, Aleksandra"]
[Black "Dimitrova, Aleksandra"]
[Result "1/2-1/2"]
[ECO "B41"]
[WhiteElo "2238"]
[BlackElo "2246"]
[Annotator "NA"]
[PlyCount "102"]
[EventDate "2017.??.??"]
[EventType "tourn"]
[EventCountry "RUS"]
[SourceTitle "playchess.com"]
[Source "ChessBase"]
[SourceQuality "1"]
[TimeControl "40/5400+30:1800+30"]

{[%evp 11,101,33,32767,29,32767,32767,32767,32767,32767,-5,0,32767,25,32767,0,-19,32767,0,32767,2,0,32767,32767,0,0,0,20,13,8,0,32767,32767,14,18,16,14,21,15,19,32767,0,0,32767,0,0,0,8,32767,0,32767,33,19,46,32767,32767,32767,32767,32767,32767,32767,22,25,32767,14,32767,32767,10,18,32767,0,5,0,0,0,0,0,32767,0,31,0,32767,32767,32767,0,32767,0,0,0,0,32767,0,0]} 1. e4 {[%emt 0:00:00]} c5 {[%emt 0:00:03]} 2. Nf3 {[%emt 0:00:00]} e6 {[%emt 0:00:04]} 3. d4 {[%emt 0:00:00]} cxd4 {[%emt 0:00:05]} 4. Nxd4 {[%emt 0:00:00]} a6 {[%emt 0:00:05]} 5. c4 {[%emt 0:00:00]} Nf6 {[%emt 0:00:12]} 6. Nc3 {[%emt 0:00:10]} Bb4 {[%emt 0:00:06]} 7. Qf3 {[%emt 0:00:09] LiveBook: 49 Games} Bxc3+ {[%emt 0:01:40] B41: Sicilian: Kan Variation: 5 c4} 8. bxc3 {[%emt 0:00:07]} d6 {[%emt 0:00:46]} 9. Be2 {[%emt 0:00:55]} Nbd7 $146 {[%emt 0:07:54]} (9... O-O 10. O-O e5 11. Nf5 Bxf5 12. exf5 Nc6 13. Rb1 Qe7 14. Bg5 e4 15. Qg3 {½-½ (136) Yu,Y (2652)-Wang,C (2435) Tianjin 2011}) 10. Qe3 {[%emt 0:02:15]} ({White should play} 10. Ba3 $14 Ne5 11. Qg3) 10... Qc7 {[%emt 0:06:21]} 11. O-O {[%emt 0:02:55]} Nc5 {[%emt 0:02:53]} 12. f3 {[%emt 0:03:43]} e5 {[%emt 0:04:50]} 13. Nb3 {[%emt 0:04:48]} Ne6 {[%emt 0:08:21]} 14. Rd1 {[%emt 0:08:17]} O-O {[%emt 0:01:25]} 15. Qf2 {[%emt 0:01:28]} Nd7 {[%emt 0:04:21]} 16. Bf1 {[%emt 0:10:00]} a5 {[%emt 0:02:48]} 17. Rb1 {[%emt 0:08:54]} Ndc5 {[%emt 0:04:55]} 18. Ba3 {[%emt 0:01:39]} b6 {[%emt 0:06:30]} 19. Na1 {[%emt 0:02:16]} Bd7 {[%emt 0:02:27]} 20. Nc2 {[%emt 0:07:40]} Ba4 {[%emt 0:01:29]} 21. Rd5 {[%emt 0:00:39]} Nf4 {[%emt 0:02:48]} 22. Rd2 {[%emt 0:07:00]} Bxc2 {[%emt 0:02:11]} 23. Rxc2 {[%emt 0:00:05]} Qc6 {[%emt 0:03:29]} 24. Rd2 {[%emt 0:02:10]} Rad8 {[%emt 0:04:47]} 25. Rbd1 {[%emt 0:02:54]} Nfe6 {[%emt 0:04:48]} 26. Rd5 {[%emt 0:06:20]} Nc7 {[%emt 0:04:07]} 27. R5d2 {[%emt 0:00:53]} N7e6 {[%emt 0:03:29]} 28. Qh4 {[%emt 0:00:37]} Qa4 {[%emt 0:05:25]} 29. Bxc5 {[%emt 0:02:20]} bxc5 {[%emt 0:02:41]} 30. Qf2 {[%emt 0:04:03]} Qa3 {[%emt 0:03:02]} 31. Rc2 {[%emt 0:05:40]} ({Much weaker is} 31. Rxd6 Rxd6 32. Rxd6 Qxc3 $15) 31... Rb8 {[%emt 0:01:33]} 32. Rxd6 {[%emt 0:04:32]} Rb1 {[%emt 0:00:05]} 33. g3 {[%emt 0:00:18]} Rfb8 {[%emt 0:00:36]} 34. Qe2 {[%emt 0:00:12]} Rc1 {[%emt 0:03:33]} 35. Rdd2 {[%emt 0:03:58]} h6 {[%emt 0:02:46]} 36. Kf2 {[%emt 0:01:41]} Rbb1 {[%emt 0:02:37]} 37. Rxc1 {[%emt 0:00:21]} Qxc1 {[%emt 0:00:22]} 38. Rc2 {[%emt 0:00:09]} Qg5 {[%emt 0:00:52]} 39. h4 {[%emt 0:03:37]} Qd8 {[%emt 0:01:15]} 40. Bh3 {[%emt 0:00:00]} a4 {[%emt 0:02:05]} 41. Bxe6 {[%emt 0:11:31]} fxe6 {[%emt 0:00:02]} 42. Rd2 {[%emt 0:03:07]} Qb6 {[%emt 0:01:57]} 43. Qd3 {[%emt 0:06:23]} a3 {[%emt 0:02:10]} 44. Ke2 {[%emt 0:06:27]} Rc1 {[%emt 0:03:35]} 45. h5 {[%emt 0:01:08]} Kh7 {[%emt 0:04:17]} 46. Qd7 {[%emt 0:02:28]} Rg1 {[%emt 0:03:22]} ({Black should play} 46... Qb2 $11) 47. Qe8 {[%emt 0:06:27]} (47. Qb5 $14 Rb1 48. Qxb6 Rxb6 49. Kd1) 47... Rxg3 {[%emt 0:02:02]} 48. Kf2 $11 {[%emt 0:00:08]} Rg5 {[%emt 0:00:06]} 49. Rd8 {[%emt 0:00:19]} Qb2+ {[%emt 0:00:12]} 50. Ke3 {[%emt 0:00:05]} Qxc3+ {[%emt 0:02:01]} (50... Qc1+ $5 51. Kd3 $8 Qd1+ 52. Ke3 Qg1+ 53. Kd3 Qb1+ 54. Ke3 Qg1+ 55. Kd3 Qb1+ 56. Ke3 Qg1+ $11) 51. Kf2 {[%emt 0:00:06]} Qb2+ {[%emt 0:08:29]} 1/2-1/2

[Event "RUS-ch Youth U21 Girls 2017"]
[Site "Loo"]
[Date "2017.04.23"]
[Round "4"]
[White "Styazhkina, Anna"]
[Black "Bykova, Anastasia"]
[Result "1-0"]
[ECO "C07"]
[WhiteElo "2222"]
[BlackElo "2241"]
[Annotator "NA"]
[PlyCount "71"]
[EventDate "2017.??.??"]
[EventType "tourn"]
[EventCountry "RUS"]
[SourceTitle "playchess.com"]
[Source "ChessBase"]
[SourceQuality "1"]
[TimeControl "40/5400+30:1800+30"]

{[%evp 16,61,20,17,0,32767,61,32767,68,32767,27,32767,24,18,32767,119,132,32767,125,123,32767,125,140,32767,106,97,32767,329,32767,318,32767,32767,681,674,32767,816,926,1102,1132,898,32767,32767,1024,895,939,911,782,800]} 1. e4 {[%emt 0:00:00]} e6 {[%emt 0:00:05]} 2. d4 {[%emt 0:00:00]} d5 {[%emt 0:00:05]} 3. Nd2 {[%emt 0:00:00]} c5 {[%emt 0:00:06]} 4. exd5 {[%emt 0:00:05]} Qxd5 {[%emt 0:00:07]} 5. dxc5 {[%emt 0:00:19]} Bxc5 {[%emt 0:00:46]} 6. Ngf3 {[%emt 0:00:09]} Nf6 {[%emt 0:00:09]} 7. Bd3 {[%emt 0:00:47]} O-O {[%emt 0:00:50]} 8. Qe2 {[%emt 0:06:06] C07: French Tarrasch: 3...c5, 4 Ngf3 and 4 exd5 Qxd5} Nc6 {[%emt 0:02:15]} (8... Nbd7 9. Nb3 Bb6 10. Be3 Bxe3 11. Qxe3 Ng4 12. Qe2 Nge5 13. O-O-O Nxd3+ 14. Rxd3 Qb5 15. Rhd1 a5 {½-½ (129) Vovk,A (2642)-Nevednichy,V (2557) Cappelle-la-Grande 2015}) 9. O-O {[%emt 0:00:44] LiveBook: 6 Games} b6 {[%emt 0:06:54]} 10. Ne4 {[%emt 0:03:59]} Bb7 {[%emt 0:11:28]} 11. c4 $146 {[%emt 0:05:18]} (11. Re1 Nb4 12. Nxf6+ gxf6 13. Rd1 Nxd3 14. Rxd3 Ba6 15. Rxd5 Bxe2 {1-0 (30) Khakimov,T (2228)-Turkin,V (2351) Voronezh 2004}) 11... Qd7 {[%emt 0:03:57]} (11... Qh5 $11) 12. Nxf6+ {[%emt 0:01:24]} gxf6 {[%emt 0:00:06]} 13. Bh6 {[%emt 0:32:26]} Rfd8 {[%emt 0:01:30]} 14. Rad1 {[%emt 0:00:26]} Qc7 {[%emt 0:00:43] [#]} 15. Qe4 $1 {[%emt 0:01:54]} f5 {[%emt 0:01:12]} 16. Qh4 {[%emt 0:00:32]} Be7 {[%emt 0:03:43]} 17. Bg5 {[%emt 0:07:46]} Re8 {[%emt 0:15:28]} 18. Rfe1 {[%emt 0:01:34]} ({Reject} 18. Bxe7 $6 Qxe7 19. Qf4 Kh8 $11) 18... Rad8 {[%emt 0:26:00]} 19. Bxe7 {[%emt 0:04:21]} Qxe7 {[%emt 0:01:28]} ({Wrong is} 19... Nxe7 $2 20. Ng5 h6 21. Qxh6 $18) 20. Ng5 {[%emt 0:01:35]} f6 {[%emt 0:03:53]} 21. Nxe6 {[%emt 0:01:39]} Qxe6 {[%emt 0:05:56]} 22. Rxe6 {[%emt 0:00:25]} Rxe6 {[%emt 0:00:04]} 23. f3 {[%emt 0:06:04]} Red6 {[%emt 0:00:16]} (23... Ne7 $142 24. Bc2 Rxd1+ 25. Bxd1 Kg7) 24. c5 {[%emt 0:00:18]} Rd4 {[%emt 0:03:51]} 25. Bc4+ {[%emt 0:01:32]} Kg7 {[%emt 0:00:06]} 26. Rxd4 {[%emt 0:00:36]} Rxd4 {[%emt 0:00:22]} 27. Qg3+ {[%emt 0:00:13]} Kh6 {[%emt 0:00:12]} 28. Bg8 {[%emt 0:05:16]} Rd7 {[%emt 0:03:34]} 29. cxb6 {[%emt 0:01:48]} axb6 {[%emt 0:00:19]} 30. Be6 {[%emt 0:01:17]} Rd1+ {[%emt 0:00:10]} 31. Kf2 $18 {[%emt 0:00:05]} Nd4 {[%emt 0:00:34]} 32. Qf4+ {[%emt 0:00:31]} Kg6 {[%emt 0:00:09]} 33. Bxf5+ {[%emt 0:01:10]} Nxf5 {[%emt 0:00:18]} 34. Qg4+ {[%emt 0:00:04]} Kf7 {[%emt 0:01:24]} 35. Qxf5 {[%emt 0:00:09]} Kg7 {[%emt 0:00:08]} 36. Qe6 {[%emt 0:02:01]} 1-0

[Event "RUS-ch Youth U21 Girls 2017"]
[Site "Loo"]
[Date "2017.04.26"]
[Round "7"]
[White "Shuvalova, Polina"]
[Black "Dordzhieva, Dinara"]
[Result "1-0"]
[ECO "E04"]
[WhiteElo "2376"]
[BlackElo "2277"]
[Annotator "NA"]
[PlyCount "81"]
[EventDate "2017.??.??"]
[EventType "tourn"]
[EventCountry "RUS"]
[SourceTitle "playchess.com"]
[Source "ChessBase"]
[SourceQuality "1"]
[TimeControl "40/5400+30:1800+30"]

1. d4 {[%emt 0:00:00]} Nf6 {[%emt 0:01:24]} 2. c4 {[%emt 0:00:00]} e6 {[%emt 0:00:28]} 3. g3 {[%emt 0:00:00]} d5 {[%emt 0:00:08]} 4. Nf3 {[%emt 0:00:00]} dxc4 {[%emt 0:00:50]} 5. Bg2 {[%emt 0:00:00]} a6 {[%emt 0:00:06]} 6. Ne5 {[%emt 0:00:00]} Bb4+ {[%emt 0:00:24] E04: Open Catalan: 5 Nf3} (6... c5 7. Be3 Nd5 8. Nc3 Nxe3 9. fxe3 Nd7 10. Nxc4 Be7 11. O-O O-O 12. a4 Nb6 13. Nxb6 Qxb6 14. a5 Qc7 15. Na4 cxd4 {0-1 (47) Nguyen,N (2649)-Wang,H (2717) Ho Chi Minh City 2016}) 7. Nc3 {[%emt 0:00:10]} Nd5 {[%emt 0:00:12]} 8. Bd2 {[%emt 0:00:09]} Nb6 {[%emt 0:00:06]} 9. e3 {[%emt 0:00:25]} N8d7 {[%emt 0:00:47]} 10. Nxd7 {[%emt 0:00:03]} Qxd7 {[%emt 0:00:05]} 11. Ne4 {[%emt 0:00:26]} Bxd2+ {[%emt 0:05:19]} 12. Nxd2 {[%emt 0:08:22]} O-O {[%emt 0:03:49]} 13. Qc2 {[%emt 0:01:37]} e5 {[%emt 0:23:35]} 14. dxe5 {[%emt 0:00:57] [#]} Rd8 $146 {[%emt 0:05:22]} 15. Be4 {[%emt 0:13:35]} g6 {[%emt 0:01:06]} 16. h4 {[%emt 0:01:40]} Qe7 {[%emt 0:10:20]} 17. f4 {[%emt 0:05:16]} h5 {[%emt 0:03:13]} (17... Bf5 $11) 18. Kf2 {[%emt 0:03:54]} c6 {[%emt 0:07:16]} 19. Rhd1 {[%emt 0:11:54]} Bg4 {[%emt 0:03:18]} 20. Nf3 {[%emt 0:00:15]} Kg7 {[%emt 0:10:00]} 21. Qc3 {[%emt 0:12:21]} (21. Rac1 $11 {remains equal.}) 21... Kg8 {[%emt 0:00:25]} 22. Rd4 {[%emt 0:04:46]} a5 {[%emt 0:09:10]} 23. Rad1 {[%emt 0:04:23]} Na4 $1 {[%emt 0:02:17]} 24. Qc2 {[%emt 0:14:37]} Bxf3 $2 {[%emt 0:00:19]} (24... Nc5 $1 $14) 25. Bxf3 {[%emt 0:02:20]} Rxd4 {[%emt 0:00:23]} 26. Rxd4 {[%emt 0:02:31]} Qb4 {[%emt 0:00:35]} 27. Rxc4 {[%emt 0:06:21]} Qxb2 {[%emt 0:00:06]} 28. Qxb2 {[%emt 0:00:11]} Nxb2 {[%emt 0:00:05]} 29. Rd4 {[%emt 0:00:04]} a4 {[%emt 0:01:52]} 30. a3 {[%emt 0:02:28]} Ra5 {[%emt 0:09:10]} 31. Be2 {[%emt 0:02:33]} Rd5 {[%emt 0:01:13]} 32. Ke1 {[%emt 0:00:25]} Rc5 {[%emt 0:02:27]} 33. Kd2 {[%emt 0:00:50]} b5 {[%emt 0:00:26]} 34. Rb4 {[%emt 0:00:56]} Nc4+ {[%emt 0:00:35]} 35. Bxc4 {[%emt 0:00:04]} bxc4 {[%emt 0:00:03]} 36. e4 {[%emt 0:01:48]} Ra5 {[%emt 0:00:45]} 37. Rxc4 {[%emt 0:00:33]} c5 {[%emt 0:00:02]} 38. Kd3 {[%emt 0:00:55]} Kf8 {[%emt 0:00:24]} 39. Rc3 {[%emt 0:00:13]} Ke7 {[%emt 0:00:59]} 40. Kc4 {[%emt 0:00:00]} Kd7 {[%emt 0:00:49]} 41. Rd3+ $18 {[%emt 0:03:41]} 1-0